bitfinex/quotes_BTCUSD_20240718
["timestamp","ask_amount","ask_price","bid_price","bid_amount"]
[1721315598309,2.57358075,63735.0,63710.0,0.06135241]
[1721315598544,1.412383,63722.0,63711.0,0.0602]
[1721315598773,1.49016735,63722.0,63711.0,0.0602]
[1721315598992,1.59016796,63722.0,63711.0,0.0602]
[1721315599218,1.58516796,63722.0,63711.0,0.0602]
[1721315599461,2.10816796,63722.0,63711.0,0.0602]
[1721315599682,2.5764127,63722.0,63711.0,0.0602]
[1721315599926,2.2625497,63722.0,63711.0,0.0602]
[1721315600158,2.2625497,63722.0,63710.0,0.00115241]
[1721315600159,2.7195127,63722.0,63710.0,0.00115241]
[1721315600611,2.7695127,63722.0,63710.0,0.00115241]
[1721315600833,2.7195127,63722.0,63710.0,0.00115241]
[1721315601520,2.26420778,63722.0,63710.0,0.00115241]
[1721315601758,1.58672638,63722.0,63710.0,0.0783272]
[1721315602026,1.67576474,63722.0,63713.0,0.0647]
[1721315602279,1.60247166,63722.0,63713.0,0.0647]
[1721315602728,1.52312576,63722.0,63713.0,0.0647]
[1721315602999,1.20926276,63722.0,63713.0,0.0647]
[1721315603440,1.22326276,63722.0,63713.0,0.0647]
[1721315603903,0.18167376,63722.0,63713.0,0.0647]
[1721315604140,0.18167376,63722.0,63721.0,0.47220106]
[1721315604141,0.02974276,63722.0,63721.0,0.47220106]
[1721315604356,0.02974276,63722.0,63721.0,0.67979923]
[1721315604622,0.04374276,63722.0,63721.0,0.67979923]
[1721315604876,0.51453676,63722.0,63721.0,0.31781932]
[1721315605083,1.45612576,63722.0,63721.0,0.17661932]
[1721315605313,1.12886276,63722.0,63721.0,0.17661932]
[1721315605570,1.11486276,63722.0,63721.0,0.17661932]
[1721315605781,1.42872576,63722.0,63721.0,0.17661932]
[1721315606029,1.7061075,63722.0,63721.0,0.17661932]
[1721315606266,2.71124781,63722.0,63721.0,0.17661932]
[1721315606483,2.66070149,63722.0,63721.0,0.17661932]
[1721315606706,2.69670149,63722.0,63721.0,0.17661932]
[1721315607201,2.64670149,63722.0,63721.0,0.17661932]
[1721315607424,2.69670149,63722.0,63721.0,0.17661932]
[1721315607668,2.69670149,63722.0,63721.0,0.14523232]
[1721315607903,2.71070149,63722.0,63721.0,0.14523232]
[1721315608149,1.79973849,63722.0,63721.0,0.14523232]
[1721315608368,1.77673849,63722.0,63721.0,0.14523232]
[1721315608593,1.76273849,63722.0,63721.0,0.14523232]
[1721315608818,1.68256118,63722.0,63721.0,0.14523232]
[1721315609052,1.69656118,63722.0,63721.0,0.14523232]
[1721315609282,2.10500647,63722.0,63721.0,0.14523232]
[1721315609745,2.06300647,63722.0,63721.0,0.14523232]
[1721315610253,2.13600647,63722.0,63721.0,0.14523232]
[1721315610486,2.08574172,63722.0,63721.0,0.14523232]
[1721315610708,1.78587872,63722.0,63721.0,0.14523232]
[1721315611161,2.09974172,63722.0,63721.0,0.14523232]
[1721315611670,2.14974172,63722.0,63721.0,0.14523232]
[1721315612376,2.22764172,63722.0,63721.0,0.14523232]
[1721315612601,2.17764172,63722.0,63721.0,0.14523232]
[1721315612829,2.11374172,63722.0,63721.0,0.14523232]
[1721315613078,2.27687872,63722.0,63721.0,0.14523232]
[1721315613304,1.62097849,63722.0,63721.0,0.14523232]
[1721315613537,1.54217944,63722.0,63721.0,0.14523232]
[1721315614424,1.62153011,63722.0,63721.0,0.14523232]
[1721315614652,1.60753011,63722.0,63721.0,0.14523232]
[1721315615413,1.62153011,63722.0,63721.0,0.14523232]
[1721315616127,1.60753011,63722.0,63721.0,0.14523232]
[1721315616400,1.11501644,63722.0,63721.0,0.14523232]
[1721315616610,0.80087183,63722.0,63721.0,0.14523232]
[1721315617299,0.48729044,63722.0,63721.0,0.22240711]
[1721315617525,0.17342744,63722.0,63721.0,0.36050711]
[1721315617769,0.00249644,63722.0,63721.0,0.71134378]
[1721315617997,0.00249644,63722.0,63721.0,0.55440978]
[1721315617998,0.15942744,63722.0,63721.0,0.55440978]
[1721315618257,0.00249644,63722.0,63721.0,0.55440978]
[1721315618441,0.00249644,63722.0,63721.0,0.47673499]
[1721315618936,0.18142744,63722.0,63721.0,0.32235325]
[1721315619173,0.02449644,63722.0,63721.0,0.47673499]
[1721315619436,0.18142744,63722.0,63721.0,0.47673499]
[1721315619645,0.16742744,63722.0,63721.0,0.47673499]
[1721315620089,0.48129044,63722.0,63721.0,0.47673499]
[1721315620347,0.80515344,63722.0,63721.0,0.28283232]
[1721315620827,1.11901644,63722.0,63721.0,0.28283232]
[1721315621307,1.53287944,63722.0,63721.0,0.14473232]
[1721315621539,1.6126975,63722.0,63721.0,0.14473232]
[1721315621999,1.76707924,63722.0,63721.0,0.14473232]
[1721315622227,1.76686638,63722.0,63721.0,0.14473232]
[1721315622511,1.78986638,63722.0,63721.0,0.14473232]
[1721315622758,2.02412418,63722.0,63721.0,0.14473232]
[1721315623005,2.24406851,63722.0,63721.0,0.14473232]
[1721315623473,2.23606851,63722.0,63721.0,0.14473232]
[1721315623970,2.09536851,63722.0,63721.0,0.14473232]
[1721315624209,2.08536851,63722.0,63721.0,0.14473232]
[1721315624698,2.08636851,63722.0,63721.0,0.14473232]
[1721315625452,2.53334338,63722.0,63721.0,0.14473232]
[1721315625712,2.418964,63722.0,63721.0,0.14396485]
[1721315625952,2.732827,63722.0,63721.0,0.14396485]
[1721315626619,2.73726459,63722.0,63721.0,0.14396485]
[1721315626851,2.75126459,63722.0,63721.0,0.14396485]
[1721315627184,3.25126459,63722.0,63721.0,0.11257785]
[1721315627410,3.23726459,63722.0,63721.0,0.11257785]
[1721315627899,3.25126459,63722.0,63721.0,0.11257785]
[1721315628114,2.75126459,63722.0,63721.0,0.11257785]
[1721315628317,3.25126459,63722.0,63721.0,0.10757785]
[1721315628523,3.25096827,63722.0,63721.0,0.07619085]
[1721315628730,2.36410527,63722.0,63721.0,0.07619085]
[1721315628929,2.21800527,63722.0,63721.0,0.07710385]
[1721315629442,2.21883527,63722.0,63721.0,0.07710385]
[1721315629660,2.71883527,63722.0,63721.0,0.07710385]
[1721315630351,3.08269827,63722.0,63721.0,0.07710385]
[1721315630584,3.36709827,63722.0,63721.0,0.07710385]
[1721315631030,3.02623527,63722.0,63721.0,0.07710385]
[1721315631665,2.83435867,63722.0,63721.0,0.07710385]
[1721315631879,3.07727166,63722.0,63721.0,0.07710385]
[1721315632098,3.07727526,63722.0,63721.0,0.07710385]
[1721315632322,3.39113826,63722.0,63721.0,0.07710385]
[1721315632559,3.38613826,63722.0,63721.0,0.07710385]
[1721315633425,3.40013826,63722.0,63721.0,0.07710385]
[1721315633939,1.23359456,63722.0,63721.0,0.07710385]
[1721315634167,1.12928403,63722.0,63721.0,0.07710385]
[1721315634396,0.81542103,63722.0,63721.0,0.07710385]
[1721315635926,0.80142103,63722.0,63721.0,0.07710385]
[1721315636579,1.11471984,63722.0,63721.0,0.07710385]
[1721315637018,0.80085684,63722.0,63721.0,0.07710385]
[1721315637743,0.80985684,63722.0,63721.0,0.07710385]
[1721315637960,0.80985684,63722.0,63721.0,0.15427864]
[1721315637961,0.01119984,63722.0,63721.0,0.15427864]
[1721315638191,0.01119984,63722.0,63721.0,0.40342846]
[1721315638410,0.02219984,63722.0,63721.0,0.48172846]
[1721315639918,0.01319984,63722.0,63721.0,0.48172846]
[1721315640141,0.313803,63735.0,63721.0,0.79559646]
[1721315640384,0.313803,63735.0,63727.0,0.0618]
[1721315640385,0.156909,63731.0,63727.0,0.0618]
[1721315640602,0.156912,63730.0,63728.0,0.16825174]
[1721315640831,0.470749,63728.0,63727.0,0.0618]
[1721315641064,1.098415,63728.0,63727.0,0.0618]
[1721315641272,1.412248,63728.0,63727.0,0.0618]
[1721315641998,1.098415,63728.0,63727.0,0.0618]
[1721315642430,1.09852,63722.0,63721.0,0.07710385]
[1721315642637,1.09852,63722.0,63721.0,0.14230385]
[1721315642844,1.412383,63722.0,63721.0,0.14230385]
[1721315643970,1.56676474,63722.0,63721.0,0.07710385]
[1721315644222,2.29449074,63722.0,63721.0,0.07710385]
[1721315644479,1.66676474,63722.0,63721.0,0.07710385]
[1721315644692,1.521383,63722.0,63721.0,0.07710385]
[1721315645129,1.512383,63722.0,63721.0,0.07710385]
[1721315645592,1.526383,63722.0,63721.0,0.07710385]
[1721315646579,1.52582045,63722.0,63721.0,0.07710385]
[1721315647246,1.21195745,63722.0,63721.0,0.15400385]
[1721315647937,1.19795745,63722.0,63721.0,0.15400385]
[1721315648178,1.51382045,63722.0,63721.0,0.15400385]
[1721315648409,1.51382045,63722.0,63721.0,0.07710385]
[1721315648830,1.51182045,63722.0,63721.0,0.07710385]
[1721315649001,1.52582045,63722.0,63721.0,0.07710385]
[1721315649460,2.02206519,63722.0,63721.0,0.07810385]
[1721315650322,2.07206519,63722.0,63721.0,0.07810385]
[1721315650532,2.2639299,63722.0,63721.0,0.07810385]
[1721315650737,2.2409299,63722.0,63721.0,0.07810385]
[1721315651156,2.5547929,63722.0,63721.0,0.07810385]
[1721315651333,2.5794032,63722.0,63721.0,0.07810385]
[1721315652060,2.6024032,63722.0,63721.0,0.07810385]
[1721315652482,2.6024032,63722.0,63721.0,0.07710385]
[1721315652483,2.5654032,63722.0,63721.0,0.07710385]
[1721315652716,0.813917,63711.0,63710.0,4.1e-07]
[1721315652938,1.87531324,63711.0,63710.0,4.1e-07]
[1721315653187,2.78988945,63711.0,63710.0,4.1e-07]
[1721315653430,2.31940645,63711.0,63710.0,4.1e-07]
[1721315653651,2.60380645,63711.0,63710.0,4.1e-07]
[1721315653878,3.10380645,63711.0,63710.0,4.1e-07]
[1721315654364,3.15380645,63711.0,63710.0,4.1e-07]
[1721315654845,3.16780645,63711.0,63710.0,4.1e-07]
[1721315656652,3.190244,63711.0,63710.0,4.1e-07]
[1721315656872,3.117244,63711.0,63710.0,4.1e-07]
[1721315657311,3.167244,63711.0,63710.0,4.1e-07]
[1721315657805,3.15769523,63711.0,63710.0,4.1e-07]
[1721315658042,3.167244,63711.0,63710.0,4.1e-07]
[1721315658741,3.131244,63711.0,63710.0,4.1e-07]
[1721315659176,2.831327,63711.0,63710.0,4.1e-07]
[1721315659425,1.86302826,63711.0,63710.0,4.1e-07]
[1721315660353,1.55406355,63711.0,63710.0,4.1e-07]
[1721315660605,1.49979986,63711.0,63710.0,4.1e-07]
[1721315660855,0.82622955,63711.0,63710.0,4.1e-07]
[1721315661102,0.09147136,63719.0,63710.0,0.30298215]
[1721315661386,0.1143392,63724.0,63717.0,0.1486]
[1721315661609,0.313842,63727.0,63718.0,0.15438174]
[1721315661859,0.313857,63724.0,63718.0,0.15438174]
[1721315662080,0.002794,63734.0,63719.0,0.03801565]
[1721315662303,0.04573631,63739.0,63720.0,0.30081999]
[1721315662530,0.156926,63725.0,63721.0,0.0605]
[1721315662758,0.002794,63739.0,63723.0,0.0631]
[1721315662993,0.313803,63735.0,63724.0,0.15751978]
[1721315663228,0.156921,63727.0,63725.0,0.03020198]
[1721315663467,0.156921,63727.0,63726.0,0.15438174]
[1721315663925,0.00083,63728.0,63726.0,0.15438174]
[1721315663926,0.00083,63728.0,63726.0,0.29648174]
[1721315664157,0.002794,63745.0,63728.0,0.1421]
[1721315664417,0.156911,63730.0,63729.0,0.03266837]
[1721315664634,0.08109719,63744.0,63728.0,0.1421]
[1721315664635,0.470742,63729.0,63728.0,0.1421]
[1721315664879,0.78457,63729.0,63728.0,0.1421]
[1721315665109,0.470742,63729.0,63728.0,0.15631]
[1721315666069,0.156911,63731.0,63728.0,0.31069174]
[1721315666290,0.156912,63730.0,63729.0,0.15438174]
[1721315666523,0.15662546,63732.0,63729.0,0.18545091]
[1721315666742,0.313785,63738.0,63729.0,0.18545091]
[1721315666967,0.013,63734.0,63732.0,0.0662]
[1721315667200,0.313746,63746.0,63733.0,0.59504559]
[1721315667423,0.002794,63749.0,63737.0,0.081]
[1721315667651,0.156879,63743.0,63738.0,0.15438174]
[1721315667902,0.313698,63756.0,63739.0,0.12253827]
[1721315668131,0.313677,63760.0,63740.0,0.23558174]
[1721315668132,0.156876,63745.0,63740.0,0.23558174]
[1721315668354,0.46944871,63754.0,63740.0,0.23558174]
[1721315668355,0.313726,63750.0,63740.0,0.23558174]
[1721315668656,0.470646,63742.0,63741.0,0.035812]
[1721315668877,0.156884,63741.0,63740.0,0.0812]
[1721315669093,0.470653,63741.0,63740.0,0.23558174]
[1721315669992,0.156884,63741.0,63740.0,0.23558174]
[1721315670210,0.156884,63741.0,63740.0,0.26523991]
[1721315670434,0.156884,63741.0,63740.0,0.27023991]
[1721315670956,0.313731,63749.0,63740.0,0.27023991]
[1721315671184,0.57082486,63772.0,63750.0,0.1388]
[1721315671185,0.002794,63770.0,63750.0,0.1388]
[1721315671411,0.15684,63759.0,63752.0,0.156856]
[1721315671638,0.313662,63763.0,63752.0,0.156856]
[1721315671639,0.156839,63760.0,63753.0,0.20710299]
[1721315671865,0.313662,63763.0,63753.0,0.20710299]
[1721315671866,0.156837,63761.0,63753.0,0.36395699]
[1721315672096,0.313662,63763.0,63753.0,0.36395699]
[1721315672097,0.313681,63760.0,63753.0,0.20710299]
[1721315672369,0.156836,63761.0,63753.0,0.36395799]
[1721315672672,0.156832,63763.0,63756.0,0.0633]
[1721315672899,0.31364,63768.0,63757.0,0.34926716]
[1721315673179,0.02459026,63785.0,63757.0,0.8396677]
[1721315673180,0.313608,63774.0,63757.0,0.8396677]
[1721315673436,0.156831,63763.0,63757.0,0.3318857]
[1721315673674,0.157673,63758.0,63757.0,0.3318857]
[1721315673900,1.098731,63758.0,63757.0,0.17750396]
[1721315674159,1.098731,63758.0,63757.0,0.1426]
[1721315674664,1.098731,63758.0,63740.0,0.03365817]
[1721315674665,0.47061,63747.0,63746.0,0.0633]
[1721315674895,1.09809,63747.0,63746.0,0.0633]
[1721315675354,0.78435,63747.0,63746.0,0.0633]
[1721315675584,0.78435,63747.0,63746.0,0.07756]
[1721315676619,0.156859,63752.0,63746.0,0.23194174]
[1721315676853,0.00083,63758.0,63747.0,0.15438174]
[1721315676854,0.313708,63754.0,63747.0,0.15438174]
[1721315677089,0.313706,63754.0,63748.0,0.04656235]
[1721315677346,0.00083,63758.0,63749.0,0.15438174]
[1721315677610,0.31374,63747.0,63746.0,0.0633]
[1721315677852,1.09809,63747.0,63746.0,0.0633]
[1721315678086,0.784362,63746.0,63745.0,0.0793]
[1721315678342,1.098107,63746.0,63745.0,0.0793]
[1721315679038,0.784362,63746.0,63745.0,0.0793]
[1721315679274,0.470617,63746.0,63745.0,0.24788174]
[1721315679511,0.156872,63746.0,63745.0,0.24788174]
[1721315679767,0.313708,63754.0,63745.0,0.24788174]
[1721315679768,0.15687,63747.0,63745.0,0.24788174]
[1721315679995,0.15687,63747.0,63746.0,0.18543991]
[1721315680507,0.156867,63749.0,63746.0,0.18543991]
[1721315680735,0.00083,63758.0,63746.0,0.34231191]
[1721315680736,0.156856,63753.0,63746.0,0.34231191]
[1721315680967,0.156846,63757.0,63748.0,0.313733]
[1721315681198,0.00083,63758.0,63750.0,0.0826]
[1721315681460,0.00083,63758.0,63751.0,0.15751841]
[1721315681712,0.00083,63758.0,63751.0,0.15438174]
[1721315681955,0.156857,63752.0,63751.0,0.15438174]
[1721315682191,0.470572,63752.0,63751.0,0.15438174]
[1721315682665,0.156857,63752.0,63751.0,0.15438174]
[1721315682901,0.470572,63752.0,63751.0,0.15438174]
[1721315683384,0.156857,63752.0,63751.0,0.15438174]
[1721315683607,0.00083,63758.0,63751.0,0.18779573]
[1721315683608,0.313696,63756.0,63751.0,0.18779573]
[1721315683838,0.156851,63755.0,63751.0,0.18779573]
[1721315684135,0.313696,63756.0,63751.0,0.18779573]
[1721315684393,0.156857,63752.0,63751.0,0.18779573]
[1721315684616,0.470572,63752.0,63751.0,0.18779573]
[1721315684857,0.784287,63752.0,63751.0,0.18779573]
[1721315685086,0.784287,63752.0,63751.0,0.18979573]
[1721315685437,0.470572,63752.0,63751.0,0.18979573]
[1721315685900,0.784287,63752.0,63751.0,0.18979573]
[1721315686553,0.78372329,63752.0,63751.0,0.18979573]
[1721315686787,0.78372329,63752.0,63751.0,0.03541399]
[1721315687038,0.78372329,63752.0,63751.0,0.002]
[1721315687039,1.09743829,63752.0,63751.0,0.002]
[1721315687281,1.41115329,63752.0,63751.0,0.002]
[1721315687504,1.51115329,63752.0,63751.0,0.002]
[1721315688616,1.19743829,63752.0,63751.0,0.002]
[1721315690406,0.6275,63745.0,63744.0,0.0812]
[1721315690627,0.784375,63745.0,63744.0,0.23558174]
[1721315690877,1.098125,63745.0,63744.0,0.23558174]
[1721315692196,1.098125,63745.0,63744.0,0.23744439]
[1721315693528,0.784375,63745.0,63744.0,0.23744439]
[1721315693751,0.470625,63745.0,63744.0,0.26748883]
[1721315693972,0.1,63752.0,63744.0,0.26748883]
[1721315693973,0.156868,63748.0,63745.0,0.0611]
[1721315694201,0.156868,63748.0,63746.0,0.15751875]
[1721315694417,0.156868,63748.0,63747.0,0.03317258]
[1721315694633,0.156867,63748.0,63747.0,0.18755432]
[1721315694856,0.31373,63750.0,63747.0,0.18755432]
[1721315695070,0.31373,63750.0,63747.0,0.03317258]
[1721315695071,0.156867,63748.0,63747.0,0.03317258]
[1721315695302,0.156867,63748.0,63747.0,0.15438174]
[1721315695799,0.470602,63748.0,63747.0,0.15438174]
[1721315696007,0.784337,63748.0,63747.0,0.15438174]
[1721315696224,0.784337,63748.0,63747.0,0.15838174]
[1721315696225,0.156867,63748.0,63747.0,0.15838174]
[1721315696439,0.156867,63748.0,63747.0,0.18843618]
[1721315696660,0.15658408,63748.0,63747.0,0.18843618]
[1721315696875,0.47031908,63748.0,63747.0,0.18843618]
[1721315697298,0.15658408,63748.0,63747.0,0.18843618]
[1721315697516,0.78405408,63748.0,63747.0,0.18843618]
[1721315697936,1.09778908,63748.0,63747.0,0.18843618]
[1721315698644,0.313735,63748.0,63732.0,0.0628]
[1721315698879,0.78451,63734.0,63733.0,0.15438174]
[1721315699108,0.470749,63728.0,63727.0,0.066]
[1721315699346,0.784582,63728.0,63727.0,0.066]
[1721315699577,0.784632,63724.0,63723.0,0.0828]
[1721315700274,0.156923,63726.0,63723.0,0.23718174]
[1721315700497,0.156924,63725.0,63724.0,0.20070755]
[1721315700961,0.002794,63745.0,63724.0,0.20070755]
[1721315701178,0.313776,63740.0,63736.0,0.07717479]
[1721315701389,0.156871,63747.0,63739.0,0.156889]
[1721315701622,0.156872,63746.0,63740.0,0.23556629]
[1721315701838,0.156875,63745.0,63740.0,0.23556629]
[1721315702048,0.313735,63748.0,63740.0,0.23556629]
[1721315702049,0.313745,63746.0,63740.0,0.23556629]
[1721315702264,0.313731,63749.0,63741.0,0.06130331]
[1721315702480,0.46304871,63756.0,63742.0,0.15438174]
[1721315702720,0.313721,63751.0,63744.0,0.07717479]
[1721315702950,0.313721,63751.0,63742.0,0.15438174]
[1721315702951,0.008,63748.0,63745.0,0.18941841]
[1721315703187,0.008,63748.0,63746.0,0.07717479]
[1721315703458,0.156847,63757.0,63748.0,0.456135]
[1721315703685,0.157673,63758.0,63750.0,0.156862]
[1721315703891,0.157673,63758.0,63751.0,0.15438174]
[1721315704099,0.313691,63757.0,63752.0,0.023]
[1721315704313,0.313691,63757.0,63748.0,0.1424]
[1721315704314,0.156865,63749.0,63748.0,0.1424]
[1721315704526,0.156865,63749.0,63748.0,0.15438174]
[1721315704527,0.470595,63749.0,63748.0,0.15438174]
[1721315704736,0.313708,63754.0,63748.0,0.15438174]
[1721315704958,0.008,63756.0,63751.0,0.156859]
[1721315705202,0.008,63756.0,63752.0,0.23077696]
[1721315705878,0.008,63756.0,63753.0,0.156854]
[1721315706088,0.008,63756.0,63754.0,0.17738174]
[1721315706318,0.00743613,63756.0,63754.0,0.17738174]
[1721315706548,0.313626,63771.0,63755.0,0.74345644]
[1721315706766,0.156821,63767.0,63760.0,0.31121874]
[1721315707214,0.156821,63767.0,63761.0,0.023]
[1721315707451,0.156827,63765.0,63762.0,0.15438174]
[1721315707684,0.313577,63781.0,63763.0,0.04073817]
[1721315707685,0.156822,63767.0,63763.0,0.04073817]
[1721315707897,0.156822,63767.0,63764.0,0.15438174]
[1721315708319,0.15682,63768.0,63764.0,0.15438174]
[1721315708537,0.156814,63770.0,63764.0,0.15438174]
[1721315708736,0.60694871,63788.0,63767.0,0.15438174]
[1721315708961,0.156794,63778.0,63771.0,0.156809]
[1721315709176,0.002794,63787.0,63772.0,0.18051732]
[1721315709177,0.46304871,63787.0,63772.0,0.18051732]
[1721315709387,0.313568,63782.0,63774.0,0.0606]
[1721315709591,0.313568,63782.0,63773.0,0.06509543]
[1721315709592,0.313543,63787.0,63776.0,0.1386]
[1721315709865,0.00835,63792.0,63778.0,0.15438174]
[1721315710110,0.00835,63792.0,63780.0,0.15438174]
[1721315710111,0.165111,63792.0,63780.0,0.15438174]
[1721315710345,0.00835,63792.0,63782.0,0.156783]
[1721315710552,0.16511,63792.0,63783.0,0.17738174]
[1721315710774,0.156764,63790.0,63783.0,0.17738174]
[1721315710981,0.00835,63792.0,63783.0,0.33729677]
[1721315711252,0.156762,63791.0,63783.0,0.17738174]
[1721315711924,0.470337,63784.0,63783.0,0.15438174]
[1721315712131,0.47044,63770.0,63769.0,0.0607]
[1721315712370,0.156831,63763.0,63760.0,0.0607]
[1721315712634,0.156827,63765.0,63761.0,0.16828174]
[1721315712850,0.56304871,63778.0,63761.0,0.16828174]
[1721315713075,0.156855,63753.0,63752.0,0.0607]
[1721315713308,0.784275,63753.0,63752.0,0.15438174]
[1721315713505,0.784275,63753.0,63734.0,0.0607]
[1721315713506,0.1,63753.0,63734.0,0.0607]
[1721315713739,0.102794,63752.0,63735.0,0.15751921]
[1721315713984,0.102794,63752.0,63736.0,0.156896]
[1721315713985,0.156875,63745.0,63736.0,0.156896]
[1721315714216,0.1,63752.0,63737.0,0.15438174]
[1721315714438,0.313743,63747.0,63737.0,0.31127374]
[1721315714659,0.002794,63746.0,63741.0,0.15438174]
[1721315714878,0.156863,63750.0,63741.0,0.31126474]
[1721315715359,0.46304871,63760.0,63738.0,0.313783]
[1721315715360,0.156849,63756.0,63747.0,0.156869]
[1721315715581,0.1657,63767.0,63749.0,0.07717479]
[1721315715791,0.156835,63761.0,63752.0,0.156857]
[1721315716002,0.313658,63764.0,63753.0,0.15438174]
[1721315716216,0.00835,63786.0,63751.0,0.0612]
[1721315716217,0.313641,63768.0,63754.0,0.23265975]
[1721315716427,0.313623,63771.0,63757.0,0.156843]
[1721315716428,0.156821,63767.0,63757.0,0.156843]
[1721315716642,0.156826,63765.0,63758.0,0.15438174]
[1721315716850,0.156826,63765.0,63759.0,0.0392643]
[1721315717057,0.313655,63765.0,63760.0,0.15438174]
[1721315717278,0.156831,63763.0,63760.0,0.15438174]
[1721315717483,0.313639,63768.0,63761.0,0.0193646]
[1721315717742,0.313639,63768.0,63762.0,0.15438174]
[1721315717948,0.313642,63767.0,63762.0,0.15438174]
[1721315718192,0.156823,63767.0,63763.0,0.01737463]
[1721315718394,0.313599,63776.0,63764.0,0.15438174]
[1721315718614,0.156812,63771.0,63765.0,0.0031359]
[1721315718851,0.313595,63777.0,63766.0,0.15438174]
[1721315719050,0.47139871,63786.0,63768.0,0.0642]
[1721315719051,0.313583,63779.0,63768.0,0.0642]
[1721315719265,0.313583,63779.0,63769.0,0.15751746]
[1721315719266,0.156802,63775.0,63769.0,0.15751746]
[1721315719490,0.156799,63776.0,63770.0,0.07329406]
[1721315719711,0.313553,63785.0,63771.0,0.15438174]
[1721315719947,0.313575,63781.0,63772.0,0.06493987]
[1721315720183,0.156806,63773.0,63772.0,0.15438174]
[1721315720415,0.156841,63759.0,63755.0,0.0826]
[1721315720652,0.0653,63779.0,63756.0,0.0208112]
[1721315720653,0.313603,63775.0,63756.0,0.0208112]
[1721315720854,0.313627,63770.0,63756.0,0.0208112]
[1721315721074,0.156834,63762.0,63756.0,0.0208112]
[1721315721293,0.156821,63767.0,63758.0,0.156842]
[1721315721502,0.313617,63772.0,63759.0,0.27257301]
[1721315721707,0.1,63780.0,63759.0,0.27257301]
[1721315721708,0.1,63780.0,63764.0,0.156827]
[1721315721936,0.1,63780.0,63759.0,0.27257301]
[1721315721937,0.313602,63775.0,63765.0,0.38838053]
[1721315722165,0.313602,63776.0,63765.0,0.15438174]
[1721315722391,0.156805,63774.0,63765.0,0.15438174]
[1721315722626,0.313593,63777.0,63772.0,0.001]
[1721315722627,0.156806,63773.0,63772.0,0.001]
[1721315722847,0.156806,63773.0,63772.0,0.15538174]
[1721315723089,0.156806,63773.0,63772.0,0.15438174]
[1721315723316,0.470418,63773.0,63772.0,0.15438174]
[1721315724400,0.313599,63776.0,63772.0,0.15438174]
[1721315724650,0.47041,63774.0,63773.0,0.15438174]
[1721315724928,0.1,63783.0,63764.0,0.001]
[1721315724929,0.156825,63765.0,63764.0,0.001]
[1721315725173,0.51011413,63765.0,63764.0,0.001]
[1721315725412,1.89862597,63765.0,63764.0,0.001]
[1721315725647,1.94862597,63765.0,63764.0,0.001]
[1721315725880,3.11000715,63765.0,63764.0,0.001]
[1721315726630,0.313657,63764.0,63740.0,0.156886]
[1721315726887,0.17633997,63763.0,63745.0,0.156874]
[1721315727149,0.313696,63756.0,63750.0,0.07717479]
[1721315727411,0.06873633,63764.0,63751.0,0.18098789]
[1721315727642,0.156836,63761.0,63752.0,0.156856]
[1721315727875,0.156852,63754.0,63753.0,0.15438174]
[1721315728130,0.06873633,63764.0,63753.0,0.15438174]
[1721315728368,0.002794,63763.0,63754.0,0.4590413]
[1721315728644,0.002794,63763.0,63755.0,0.31123074]
[1721315728894,0.159625,63763.0,63756.0,0.07671357]
[1721315729128,0.06873633,63764.0,63757.0,0.15438174]
[1721315729356,0.470529,63758.0,63757.0,0.15438174]
[1721315729634,0.156857,63752.0,63751.0,0.004]
[1721315729883,0.470572,63752.0,63751.0,0.15838174]
[1721315730619,0.784287,63752.0,63751.0,0.004]
[1721315730844,0.784287,63752.0,63751.0,0.01259]
[1721315731134,0.313701,63755.0,63741.0,0.000913]
[1721315731135,0.07717479,63754.0,63741.0,0.000913]
[1721315731398,0.470646,63742.0,63741.0,0.000913]
[1721315731628,0.78441,63742.0,63741.0,0.000913]
[1721315732084,0.78390997,63742.0,63741.0,0.000913]
[1721315732315,1.09767397,63742.0,63741.0,0.000913]
[1721315733076,1.51143797,63742.0,63741.0,0.000913]
[1721315733787,1.58368909,63742.0,63741.0,0.000913]
[1721315734042,1.51143797,63742.0,63741.0,0.000913]
[1721315735474,2.41617937,63742.0,63741.0,0.000913]
[1721315735761,2.41617937,63742.0,63710.0,0.00091341]
[1721315735762,0.470875,63711.0,63710.0,0.00091341]
[1721315736017,0.784792,63711.0,63710.0,0.00091341]
[1721315736760,0.47059293,63711.0,63710.0,0.00091341]
[1721315737059,0.1,63725.0,63710.0,0.15529515]
[1721315737261,0.04568552,63737.0,63712.0,0.07717479]
[1721315737262,0.313859,63723.0,63712.0,0.07717479]
[1721315737531,0.1,63736.0,63719.0,0.07717479]
[1721315737783,0.313805,63734.0,63721.0,0.313866]
[1721315738009,0.391975,63740.0,63723.0,0.156928]
[1721315738010,0.002794,63739.0,63723.0,0.156928]
[1721315738238,0.002794,63739.0,63729.0,0.156913]
[1721315738473,0.156893,63738.0,63730.0,0.21231179]
[1721315738697,0.002794,63737.0,63730.0,0.20917412]
[1721315738928,0.156898,63736.0,63730.0,0.20917412]
[1721315739154,0.313781,63739.0,63730.0,0.20917412]
[1721315739391,0.1569,63735.0,63730.0,0.20917412]
[1721315739624,0.313755,63744.0,63730.0,0.20917412]
[1721315739625,0.313757,63744.0,63732.0,0.156906]
[1721315739851,0.313757,63744.0,63733.0,0.31442222]
[1721315740078,0.313761,63743.0,63734.0,0.1448]
[1721315740307,0.0639,63761.0,63735.0,0.23848398]
[1721315740552,0.156874,63746.0,63736.0,0.313792]
[1721315740772,0.156857,63752.0,63737.0,0.15438174]
[1721315741030,0.313666,63762.0,63744.0,0.156876]
[1721315741255,0.52694871,63767.0,63745.0,0.47126357]
[1721315741256,0.156843,63758.0,63745.0,0.47126357]
[1721315741485,0.15964,63757.0,63749.0,0.156863]
[1721315741700,0.156848,63756.0,63750.0,0.2315544]
[1721315741930,0.002794,63765.0,63750.0,0.2315544]
[1721315741931,0.31367,63762.0,63750.0,0.2315544]
[1721315742178,0.15686,63751.0,63750.0,0.2315544]
[1721315742404,0.47058,63751.0,63750.0,0.15438174]
[1721315742864,0.7843,63751.0,63750.0,0.15438174]
[1721315743103,0.156884,63741.0,63740.0,0.0656]
[1721315743321,0.156884,63741.0,63740.0,0.21998174]
[1721315743565,0.156892,63738.0,63737.0,0.0298112]
[1721315743781,0.313741,63747.0,63737.0,0.15438174]
[1721315744004,0.156891,63739.0,63738.0,0.15438174]
[1721315744231,0.1,63754.0,63738.0,0.15438174]
[1721315744453,0.002794,63753.0,63739.0,0.00313726]